[Event "*** SCC Grand Prix: Titled Tuesday Blitz"]
[Site "Chess.com"]
[Date "2020.07.07"]
[Round "7"]
[White "MacDaddyMac"]
[Black "secretsuperstar7"]
[Result "0-1"]
[WhiteElo "2287"]
[BlackElo "2136"]
[TimeControl "180+1"]
[EndTime "11:15:46 PDT"]
[Termination "secretsuperstar7 won by checkmate"]

1. e4 {[%clk 0:03:00.9]} 1... c5 {[%clk 0:02:59]} 2. Nc3 {[%clk 0:03:00.6]} 2...
Nc6 {[%clk 0:02:57.5]} 3. f4 {[%clk 0:03:01.1]} 3... g6 {[%clk 0:02:56.4]} 4.
Nf3 {[%clk 0:03:01.6]} 4... Bg7 {[%clk 0:02:56.6]} 5. Bb5 {[%clk 0:03:02.2]}
5... d6 {[%clk 0:02:54.2]} 6. O-O {[%clk 0:03:01.6]} 6... Bd7 {[%clk 0:02:51.6]}
7. d3 {[%clk 0:03:01.9]} 7... Nf6 {[%clk 0:02:50.9]} 8. Qe1 {[%clk 0:03:01.3]}
8... O-O {[%clk 0:02:50.2]} 9. Bxc6 {[%clk 0:03:01.5]} 9... Bxc6 {[%clk
0:02:49.6]} 10. Qh4 {[%clk 0:03:02.4]} 10... b5 {[%clk 0:02:46.8]} 11. f5 {[%clk
0:03:00.3]} 11... b4 {[%clk 0:02:46.2]} 12. Ne2 {[%clk 0:03:00]} 12... c4 {[%clk
0:02:33.9]} 13. Bh6 {[%clk 0:02:53.2]} 13... cxd3 {[%clk 0:02:19.1]} 14. cxd3
{[%clk 0:02:54.1]} 14... Bb5 {[%clk 0:02:19]} 15. Nf4 {[%clk 0:02:46.5]} 15...
Qb6+ {[%clk 0:02:07.4]} 16. Rf2 {[%clk 0:02:45.4]} 16... Bxh6 {[%clk 0:02:04.9]}
17. Qxh6 {[%clk 0:02:45]} 17... Qxf2+ {[%clk 0:02:03.4]} 18. Kxf2 {[%clk
0:02:42.7]} 18... Ng4+ {[%clk 0:02:03.3]} 19. Ke2 {[%clk 0:02:30.9]} 19... Nxh6
{[%clk 0:02:04.2]} 20. h3 {[%clk 0:02:31.4]} 20... gxf5 {[%clk 0:02:02.3]} 21.
g4 {[%clk 0:02:30.6]} 21... fxe4 {[%clk 0:02:01.2]} 22. Nd4 {[%clk 0:02:27]}
22... Bxd3+ {[%clk 0:02:00.2]} 23. Ke3 {[%clk 0:02:27.3]} 23... e5 {[%clk
0:01:58.4]} 24. Nd5 {[%clk 0:02:24.7]} 24... exd4+ {[%clk 0:01:58.1]} 25. Kxd4
{[%clk 0:02:25.6]} 25... Kg7 {[%clk 0:01:48.7]} 26. Rg1 {[%clk 0:02:18.3]} 26...
Rac8 {[%clk 0:01:46.9]} 27. b3 {[%clk 0:02:18.4]} 27... Rfe8 {[%clk 0:01:41.9]}
28. Ne3 {[%clk 0:02:16.3]} 28... Ba6 {[%clk 0:01:30]} 29. h4 {[%clk 0:02:14.4]}
29... Rc3 {[%clk 0:01:29.6]} 30. Nc4 {[%clk 0:02:03.2]} 30... Rd3# {[%clk
0:01:28.7]} 0-1

[Event "*** SCC Grand Prix: Titled Tuesday Blitz"]
[Site "Chess.com"]
[Date "2020.07.07"]
[Round "7"]
[White "JoliyRoger"]
[Black "FearNoEvil12"]
[Result "1-0"]
[WhiteElo "2251"]
[BlackElo "2038"]
[TimeControl "180+1"]
[EndTime "11:15:52 PDT"]
[Termination "JoliyRoger won by resignation"]

1. Nf3 {[%clk 0:03:00.9]} 1... b5 {[%clk 0:02:57.5]} 2. c4 {[%clk 0:03:01.8]}
2... bxc4 {[%clk 0:02:55.8]} 3. e4 {[%clk 0:03:01.9]} 3... Bb7 {[%clk
0:02:53.7]} 4. Nc3 {[%clk 0:03:01.4]} 4... e6 {[%clk 0:02:51.9]} 5. Bxc4 {[%clk
0:03:00.4]} 5... Nf6 {[%clk 0:02:52.3]} 6. e5 {[%clk 0:02:56.3]} 6... Ne4 {[%clk
0:02:50.2]} 7. O-O {[%clk 0:02:54]} 7... Nxc3 {[%clk 0:02:48.1]} 8. bxc3 {[%clk
0:02:50.5]} 8... Nc6 {[%clk 0:02:45.9]} 9. d4 {[%clk 0:02:49.6]} 9... Be7 {[%clk
0:02:45.4]} 10. Rb1 {[%clk 0:02:47.6]} 10... Rb8 {[%clk 0:02:43.8]} 11. Bf4
{[%clk 0:02:19.3]} 11... g5 {[%clk 0:02:40.3]} 12. Be3 {[%clk 0:02:16.4]} 12...
g4 {[%clk 0:02:39.2]} 13. Nd2 {[%clk 0:02:11.9]} 13... h5 {[%clk 0:02:39.5]} 14.
Be2 {[%clk 0:02:04.3]} 14... Rg8 {[%clk 0:02:36.8]} 15. Qc2 {[%clk 0:01:59.5]}
15... Rg6 {[%clk 0:02:22.5]} 16. Rb3 {[%clk 0:01:50.1]} 16... Bg5 {[%clk
0:02:18.4]} 17. Bxg5 {[%clk 0:01:46.4]} 17... Qxg5 {[%clk 0:02:15.9]} 18. Ne4
{[%clk 0:01:39.4]} 18... Qf4 {[%clk 0:02:05.3]} 19. Rfb1 {[%clk 0:01:18.2]}
19... Nxd4 {[%clk 0:02:03.6]} 20. cxd4 {[%clk 0:01:12.1]} 20... Bxe4 {[%clk
0:02:03.8]} 21. Rxb8+ {[%clk 0:01:10.3]} 21... Ke7 {[%clk 0:02:03.8]} 22. Qc5+
{[%clk 0:01:10.1]} 1-0

[Event "*** SCC Grand Prix: Titled Tuesday Blitz"]
[Site "Chess.com"]
[Date "2020.07.07"]
[Round "7"]
[White "comsac"]
[Black "natelleka"]
[Result "0-1"]
[WhiteElo "2232"]
[BlackElo "2119"]
[TimeControl "180+1"]
[EndTime "11:15:54 PDT"]
[Termination "natelleka won by checkmate"]

1. e4 {[%clk 0:03:00.9]} 1... e5 {[%clk 0:02:59.8]} 2. Nf3 {[%clk 0:03:00.9]}
2... Nf6 {[%clk 0:03:00.3]} 3. Nxe5 {[%clk 0:03:00.4]} 3... Nxe4 {[%clk
0:03:00.6]} 4. Qe2 {[%clk 0:02:58.3]} 4... Qe7 {[%clk 0:03:00.4]} 5. Qxe4 {[%clk
0:02:58.4]} 5... d6 {[%clk 0:03:00.5]} 6. d4 {[%clk 0:02:52.9]} 6... dxe5 {[%clk
0:03:00.7]} 7. Qxe5 {[%clk 0:02:50.5]} 7... Qxe5+ {[%clk 0:03:00.4]} 8. dxe5
{[%clk 0:02:51.4]} 8... Bf5 {[%clk 0:03:00.7]} 9. c3 {[%clk 0:02:40.3]} 9... Nd7
{[%clk 0:02:59.7]} 10. f4 {[%clk 0:02:36]} 10... O-O-O {[%clk 0:02:56.2]} 11.
Be3 {[%clk 0:02:34.9]} 11... f6 {[%clk 0:02:44.2]} 12. exf6 {[%clk 0:02:28.4]}
12... gxf6 {[%clk 0:02:43.7]} 13. Be2 {[%clk 0:02:20.1]} 13... Re8 {[%clk
0:02:34.9]} 14. Kf2 {[%clk 0:02:19.4]} 14... Be4 {[%clk 0:02:13.6]} 15. Bf3
{[%clk 0:02:10.6]} 15... f5 {[%clk 0:02:12.4]} 16. Nd2 {[%clk 0:02:10]} 16...
Nf6 {[%clk 0:02:09.2]} 17. Bd4 {[%clk 0:02:03.3]} 17... Be7 {[%clk 0:01:51.9]}
18. Rhe1 {[%clk 0:01:55.3]} 18... Bxf3 {[%clk 0:01:44.6]} 19. Rxe7 {[%clk
0:01:34.4]} 19... Ng4+ {[%clk 0:01:41.1]} 20. Kxf3 {[%clk 0:01:33.6]} 20... Rxe7
{[%clk 0:01:40.8]} 21. Bxh8 {[%clk 0:01:32.9]} 21... Re3# {[%clk 0:01:40.4]} 0-1

[Event "*** SCC Grand Prix: Titled Tuesday Blitz"]
[Site "Chess.com"]
[Date "2020.07.07"]
[Round "7"]
[White "BocharovD"]
[Black "enzovsky"]
[Result "1-0"]
[WhiteElo "2760"]
[BlackElo "2480"]
[TimeControl "180+1"]
[EndTime "11:16:03 PDT"]
[Termination "BocharovD won by resignation"]

1. c4 {[%clk 0:03:00.9]} 1... g6 {[%clk 0:03:00]} 2. d4 {[%clk 0:02:55.2]} 2...
Nf6 {[%clk 0:02:58.8]} 3. Nf3 {[%clk 0:02:51.6]} 3... Bg7 {[%clk 0:02:58.9]} 4.
g3 {[%clk 0:02:45.4]} 4... c6 {[%clk 0:02:58.3]} 5. Bg2 {[%clk 0:02:44]} 5... d5
{[%clk 0:02:58.4]} 6. Qb3 {[%clk 0:02:42.2]} 6... O-O {[%clk 0:02:49.6]} 7. O-O
{[%clk 0:02:41.4]} 7... Qb6 {[%clk 0:02:49.4]} 8. Nc3 {[%clk 0:02:41]} 8... Rd8
{[%clk 0:02:44.5]} 9. Bd2 {[%clk 0:02:40.2]} 9... dxc4 {[%clk 0:02:38.3]} 10.
Qxc4 {[%clk 0:02:38.9]} 10... Be6 {[%clk 0:02:35.7]} 11. Qd3 {[%clk 0:02:37.2]}
11... Na6 {[%clk 0:02:32.8]} 12. Rfd1 {[%clk 0:02:22.1]} 12... c5 {[%clk
0:02:29.8]} 13. Na4 {[%clk 0:02:14.2]} 13... Qc7 {[%clk 0:02:28.6]} 14. Bf4
{[%clk 0:02:12.7]} 14... Qd7 {[%clk 0:02:26.2]} 15. Nxc5 {[%clk 0:02:08.6]}
15... Nxc5 {[%clk 0:02:26]} 16. dxc5 {[%clk 0:02:08.6]} 16... Qa4 {[%clk
0:02:14.5]} 17. Qxd8+ {[%clk 0:02:07.1]} 17... Rxd8 {[%clk 0:02:15]} 18. Rxd8+
{[%clk 0:02:07.5]} 18... Ne8 {[%clk 0:02:15.6]} 19. b3 {[%clk 0:02:01.2]} 19...
Qc6 {[%clk 0:01:42.4]} 20. Nd4 {[%clk 0:01:54.6]} 20... Qc8 {[%clk 0:01:07.2]}
1-0

[Event "*** SCC Grand Prix: Titled Tuesday Blitz"]
[Site "Chess.com"]
[Date "2020.07.07"]
[Round "7"]
[White "iaraldinho"]
[Black "kushagramohan"]
[Result "1-0"]
[WhiteElo "2567"]
[BlackElo "2693"]
[TimeControl "180+1"]
[EndTime "11:16:03 PDT"]
[Termination "iaraldinho won by resignation"]

1. e4 {[%clk 0:03:00.9]} 1... d6 {[%clk 0:03:00]} 2. d4 {[%clk 0:02:53]} 2...
Nf6 {[%clk 0:03:00.3]} 3. Nc3 {[%clk 0:02:53]} 3... g6 {[%clk 0:03:01]} 4. f3
{[%clk 0:02:53.3]} 4... c6 {[%clk 0:03:00.3]} 5. Be3 {[%clk 0:02:53.7]} 5... b5
{[%clk 0:03:00.2]} 6. a3 {[%clk 0:02:53.9]} 6... Nbd7 {[%clk 0:03:00.1]} 7. Qd2
{[%clk 0:02:54.3]} 7... a5 {[%clk 0:02:54.7]} 8. g4 {[%clk 0:02:53.7]} 8... h5
{[%clk 0:02:52.6]} 9. g5 {[%clk 0:02:53.5]} 9... Nh7 {[%clk 0:02:53.1]} 10. h4
{[%clk 0:02:53]} 10... Rb8 {[%clk 0:02:48.7]} 11. d5 {[%clk 0:02:52.7]} 11... b4
{[%clk 0:02:48.7]} 12. axb4 {[%clk 0:02:51.9]} 12... axb4 {[%clk 0:02:48.9]} 13.
dxc6 {[%clk 0:02:52.1]} 13... bxc3 {[%clk 0:02:45.5]} 14. cxd7+ {[%clk
0:02:51.7]} 14... Bxd7 {[%clk 0:02:45.1]} 15. Qxc3 {[%clk 0:02:51.4]} 15... Rg8
{[%clk 0:02:45.8]} 16. Bc4 {[%clk 0:02:43.6]} 16... Bg7 {[%clk 0:02:44.3]} 17.
Bd4 {[%clk 0:02:42.7]} 17... Bxd4 {[%clk 0:02:26.6]} 18. Qxd4 {[%clk 0:02:43.6]}
18... Nf8 {[%clk 0:02:27.5]} 19. Ne2 {[%clk 0:02:39.8]} 19... Ne6 {[%clk
0:02:27.7]} 20. Bxe6 {[%clk 0:02:39.6]} 20... Bxe6 {[%clk 0:02:28.6]} 21. Kf2
{[%clk 0:02:38.3]} 21... Qc7 {[%clk 0:02:28]} 22. Ra7 {[%clk 0:02:29.4]} 22...
Qc6 {[%clk 0:02:09.7]} 23. Rha1 {[%clk 0:02:27.8]} 23... Bd7 {[%clk 0:02:02.2]}
24. c4 {[%clk 0:02:18.1]} 24... e5 {[%clk 0:02:02]} 25. Qc3 {[%clk 0:02:16.6]}
25... Ke7 {[%clk 0:01:59.7]} 26. b4 {[%clk 0:02:16.2]} 26... Rgf8 {[%clk
0:01:50.7]} 27. c5 {[%clk 0:02:10.3]} 27... f5 {[%clk 0:01:48.3]} 28. R1a6
{[%clk 0:02:08.4]} 28... Qb5 {[%clk 0:01:46.7]} 29. cxd6+ {[%clk 0:02:07.1]}
29... Kd8 {[%clk 0:01:43.1]} 30. Qc7+ {[%clk 0:02:05.4]} 30... Ke8 {[%clk
0:01:42.4]} 31. Ra5 {[%clk 0:02:00.7]} 31... Qb6+ {[%clk 0:01:33.1]} 1-0

[Event "*** SCC Grand Prix: Titled Tuesday Blitz"]
[Site "Chess.com"]
[Date "2020.07.07"]
[Round "7"]
[White "rugbyclub"]
[Black "pfalcon1949"]
[Result "0-1"]
[WhiteElo "2127"]
[BlackElo "1952"]
[TimeControl "180+1"]
[EndTime "11:16:04 PDT"]
[Termination "pfalcon1949 won by resignation"]

1. c4 {[%clk 0:03:00]} 1... Nf6 {[%clk 0:02:58.8]} 2. Nc3 {[%clk 0:02:59.9]}
2... c5 {[%clk 0:02:58.6]} 3. g3 {[%clk 0:02:57.5]} 3... d5 {[%clk 0:02:58]} 4.
cxd5 {[%clk 0:02:56.8]} 4... Nxd5 {[%clk 0:02:58.9]} 5. Bg2 {[%clk 0:02:57.1]}
5... Nc7 {[%clk 0:02:58.9]} 6. Nf3 {[%clk 0:02:55.3]} 6... Nc6 {[%clk
0:02:58.9]} 7. a3 {[%clk 0:02:54.5]} 7... e5 {[%clk 0:02:59.4]} 8. b4 {[%clk
0:02:53.6]} 8... cxb4 {[%clk 0:02:58.5]} 9. axb4 {[%clk 0:02:53.8]} 9... Bxb4
{[%clk 0:02:58.4]} 10. Nxe5 {[%clk 0:02:48]} 10... Bd7 {[%clk 0:02:23.2]} 11.
Nxc6 {[%clk 0:02:30.7]} 11... bxc6 {[%clk 0:02:17.4]} 12. Ba3 {[%clk 0:02:22.1]}
12... Bxa3 {[%clk 0:02:13.6]} 13. Rxa3 {[%clk 0:02:21.8]} 13... O-O {[%clk
0:02:14.5]} 14. O-O {[%clk 0:02:20.2]} 14... a6 {[%clk 0:02:10.5]} 15. Qa1
{[%clk 0:02:19]} 15... Nb5 {[%clk 0:02:10.2]} 16. Ra5 {[%clk 0:02:05.7]} 16...
Qb6 {[%clk 0:02:01.8]} 17. Rc1 {[%clk 0:01:56.3]} 17... Ra7 {[%clk 0:01:52.9]}
18. Ne4 {[%clk 0:01:47.3]} 18... Nd4 {[%clk 0:01:46.5]} 19. Bf1 {[%clk
0:01:36.4]} 19... Nb3 {[%clk 0:01:38.6]} 20. Rb1 {[%clk 0:01:27.5]} 20... Qxa5
{[%clk 0:01:31.6]} 0-1

[Event "*** SCC Grand Prix: Titled Tuesday Blitz"]
[Site "Chess.com"]
[Date "2020.07.07"]
[Round "7"]
[White "mjray79"]
[Black "RaphCamora"]
[Result "0-1"]
[WhiteElo "2320"]
[BlackElo "2462"]
[TimeControl "180+1"]
[EndTime "11:16:10 PDT"]
[Termination "RaphCamora won by resignation"]

1. d4 {[%clk 0:03:00.9]} 1... d5 {[%clk 0:02:57.2]} 2. c4 {[%clk 0:03:01.2]}
2... e6 {[%clk 0:02:56.6]} 3. Nf3 {[%clk 0:03:01.5]} 3... Nf6 {[%clk 0:02:55.4]}
4. g3 {[%clk 0:03:02]} 4... dxc4 {[%clk 0:02:55.1]} 5. Bg2 {[%clk 0:03:02.9]}
5... Bb4+ {[%clk 0:02:55.1]} 6. Bd2 {[%clk 0:03:02]} 6... a5 {[%clk 0:02:55.6]}
7. O-O {[%clk 0:03:01.3]} 7... O-O {[%clk 0:02:53]} 8. Qc2 {[%clk 0:02:59.3]}
8... Bxd2 {[%clk 0:02:51.9]} 9. Nbxd2 {[%clk 0:02:58.9]} 9... b5 {[%clk
0:02:51.5]} 10. b3 {[%clk 0:02:57.8]} 10... cxb3 {[%clk 0:02:46.1]} 11. Nxb3
{[%clk 0:02:58.7]} 11... Bb7 {[%clk 0:02:31.4]} 12. a4 {[%clk 0:02:58.2]} 12...
b4 {[%clk 0:02:19.8]} 13. Nc5 {[%clk 0:02:57.6]} 13... Bxf3 {[%clk 0:01:49.6]}
14. Bxf3 {[%clk 0:02:56.2]} 14... Ra7 {[%clk 0:01:50.1]} 15. Rfd1 {[%clk
0:02:52]} 15... Nbd7 {[%clk 0:01:49]} 16. Nb3 {[%clk 0:02:47.3]} 16... Nd5
{[%clk 0:01:39.7]} 17. e4 {[%clk 0:02:34.2]} 17... Nc3 {[%clk 0:01:37.9]} 18.
Rd3 {[%clk 0:02:31.4]} 18... e5 {[%clk 0:01:29.1]} 19. dxe5 {[%clk 0:02:28.7]}
19... Qe7 {[%clk 0:01:25.9]} 20. Rd5 {[%clk 0:02:17.7]} 20... Nxd5 {[%clk
0:01:23.9]} 21. exd5 {[%clk 0:02:16.5]} 21... Nxe5 {[%clk 0:01:23.6]} 22. Be4
{[%clk 0:02:16.3]} 22... g6 {[%clk 0:01:19.5]} 23. Re1 {[%clk 0:02:14.7]} 23...
Nf3+ {[%clk 0:01:18.8]} 24. Bxf3 {[%clk 0:02:12.2]} 24... Qxe1+ {[%clk
0:01:18.7]} 25. Kg2 {[%clk 0:02:12.4]} 25... Qc3 {[%clk 0:01:18.7]} 26. Qb1
{[%clk 0:02:11.9]} 26... Re8 {[%clk 0:01:17.4]} 27. Qa2 {[%clk 0:02:05.4]} 27...
Re1 {[%clk 0:01:14.9]} 28. Nd2 {[%clk 0:02:01.7]} 28... Ra1 {[%clk 0:01:12.6]}
0-1

[Event "*** SCC Grand Prix: Titled Tuesday Blitz"]
[Site "Chess.com"]
[Date "2020.07.07"]
[Round "7"]
[White "Unknown_IM"]
[Black "Alexsur1981"]
[Result "1-0"]
[WhiteElo "2363"]
[BlackElo "2552"]
[TimeControl "180+1"]
[EndTime "11:16:14 PDT"]
[Termination "Unknown_IM won by checkmate"]

1. e4 {[%clk 0:03:00.9]} 1... a6 {[%clk 0:03:00.9]} 2. d4 {[%clk 0:02:56.9]}
2... b5 {[%clk 0:03:01]} 3. c3 {[%clk 0:02:53.5]} 3... Bb7 {[%clk 0:03:01.1]} 4.
Bd3 {[%clk 0:02:52.9]} 4... e6 {[%clk 0:03:01.2]} 5. Nf3 {[%clk 0:02:53.2]} 5...
Nf6 {[%clk 0:02:59.8]} 6. Qe2 {[%clk 0:02:52.1]} 6... d5 {[%clk 0:02:59.4]} 7.
e5 {[%clk 0:02:51.8]} 7... Nfd7 {[%clk 0:02:59.8]} 8. O-O {[%clk 0:02:51.4]}
8... Be7 {[%clk 0:02:59]} 9. a4 {[%clk 0:02:47.2]} 9... b4 {[%clk 0:02:57.4]}
10. Nbd2 {[%clk 0:02:44.2]} 10... c5 {[%clk 0:02:56.3]} 11. Re1 {[%clk
0:02:44.3]} 11... c4 {[%clk 0:02:55.4]} 12. Bc2 {[%clk 0:02:42.3]} 12... b3
{[%clk 0:02:55.8]} 13. Bb1 {[%clk 0:02:42.2]} 13... a5 {[%clk 0:02:56.2]} 14.
Nf1 {[%clk 0:02:40.6]} 14... Nb6 {[%clk 0:02:54.1]} 15. Ng3 {[%clk 0:02:40.3]}
15... g6 {[%clk 0:02:53.3]} 16. Bh6 {[%clk 0:02:39.4]} 16... Bc6 {[%clk
0:02:52.4]} 17. h4 {[%clk 0:02:36.5]} 17... Nxa4 {[%clk 0:02:51.1]} 18. h5
{[%clk 0:02:35.9]} 18... Nb6 {[%clk 0:02:50.8]} 19. Nh2 {[%clk 0:02:20.3]} 19...
a4 {[%clk 0:02:47.6]} 20. Ng4 {[%clk 0:02:19.5]} 20... N8d7 {[%clk 0:02:46.9]}
21. Qf3 {[%clk 0:02:16.9]} 21... Bg5 {[%clk 0:02:44.8]} 22. Bg7 {[%clk
0:02:09.5]} 22... Rg8 {[%clk 0:02:43.8]} 23. Nf6+ {[%clk 0:02:09.7]} 23... Nxf6
{[%clk 0:02:42.7]} 24. exf6 {[%clk 0:02:08.6]} 24... a3 {[%clk 0:02:38.9]} 25.
hxg6 {[%clk 0:02:07.5]} 25... hxg6 {[%clk 0:02:37.6]} 26. Bxg6 {[%clk
0:02:06.4]} 26... Rxg7 {[%clk 0:02:36.3]} 27. Rxe6+ {[%clk 0:01:58]} 27... Kd7
{[%clk 0:02:31.9]} 28. fxg7 {[%clk 0:01:58.2]} 28... fxe6 {[%clk 0:02:27.7]} 29.
Qf7+ {[%clk 0:01:56.1]} 29... Be7 {[%clk 0:02:26.8]} 30. Rxa3 {[%clk 0:01:55.2]}
30... Rxa3 {[%clk 0:02:19.4]} 31. bxa3 {[%clk 0:01:46.3]} 31... Na4 {[%clk
0:02:15.1]} 32. g8=Q {[%clk 0:01:45.8]} 32... Qxg8 {[%clk 0:02:13.5]} 33. Qxg8
{[%clk 0:01:45]} 33... Nxc3 {[%clk 0:02:07.1]} 34. Nh5 {[%clk 0:01:38.6]} 34...
b2 {[%clk 0:02:05.1]} 35. Qe8+ {[%clk 0:01:37]} 35... Kd6 {[%clk 0:01:51.5]} 36.
Qb8+ {[%clk 0:01:37.2]} 36... Kd7 {[%clk 0:01:51.6]} 37. Be8# {[%clk 0:01:37.2]}
1-0

[Event "*** SCC Grand Prix: Titled Tuesday Blitz"]
[Site "Chess.com"]
[Date "2020.07.07"]
[Round "7"]
[White "Paladin61"]
[Black "RodinMihail"]
[Result "1-0"]
[WhiteElo "2640"]
[BlackElo "2480"]
[TimeControl "180+1"]
[EndTime "11:16:23 PDT"]
[Termination "Paladin61 won by resignation"]

1. b3 {[%clk 0:02:58.6]} 1... d5 {[%clk 0:02:59.5]} 2. Bb2 {[%clk 0:02:58.7]}
2... c6 {[%clk 0:02:59.5]} 3. Nf3 {[%clk 0:02:57.5]} 3... Bg4 {[%clk 0:02:57.7]}
4. g3 {[%clk 0:02:52.2]} 4... Nd7 {[%clk 0:02:57.1]} 5. Bg2 {[%clk 0:02:52.5]}
5... Ngf6 {[%clk 0:02:54.7]} 6. O-O {[%clk 0:02:49.8]} 6... e6 {[%clk
0:02:55.2]} 7. h3 {[%clk 0:02:50.1]} 7... Bh5 {[%clk 0:02:54.9]} 8. d3 {[%clk
0:02:48.6]} 8... Bd6 {[%clk 0:02:54.7]} 9. Nbd2 {[%clk 0:02:22.3]} 9... O-O
{[%clk 0:02:54.1]} 10. e4 {[%clk 0:02:21.7]} 10... e5 {[%clk 0:02:53.9]} 11. Qe1
{[%clk 0:01:50.6]} 11... Re8 {[%clk 0:02:50.6]} 12. a3 {[%clk 0:01:41.4]} 12...
a5 {[%clk 0:02:49.7]} 13. Nh4 {[%clk 0:01:38.6]} 13... Nf8 {[%clk 0:02:45.5]}
14. Nf5 {[%clk 0:01:37]} 14... Bc7 {[%clk 0:02:34.3]} 15. Nf3 {[%clk 0:01:15.8]}
15... N6d7 {[%clk 0:02:30]} 16. Kh1 {[%clk 0:01:14]} 16... f6 {[%clk 0:02:29.6]}
17. N3h4 {[%clk 0:01:07]} 17... Bf7 {[%clk 0:02:28.5]} 18. f4 {[%clk 0:00:59.3]}
18... exf4 {[%clk 0:02:21.1]} 19. gxf4 {[%clk 0:00:59]} 19... Ne6 {[%clk
0:02:14]} 20. Qg3 {[%clk 0:00:56.2]} 20... Ndf8 {[%clk 0:02:04.1]} 21. Nh6+
{[%clk 0:00:54.4]} 21... Kh8 {[%clk 0:02:02.4]} 22. Nxf7+ {[%clk 0:00:54.2]} 1-0

[Event "*** SCC Grand Prix: Titled Tuesday Blitz"]
[Site "Chess.com"]
[Date "2020.07.07"]
[Round "7"]
[White "mortngabriel"]
[Black "PetrolulSah"]
[Result "1-0"]
[WhiteElo "2325"]
[BlackElo "2168"]
[TimeControl "180+1"]
[EndTime "11:16:23 PDT"]
[Termination "mortngabriel won by resignation"]

1. e4 {[%clk 0:03:00.9]} 1... e5 {[%clk 0:02:58.2]} 2. Nc3 {[%clk 0:03:00.5]}
2... Nf6 {[%clk 0:02:58.3]} 3. Bc4 {[%clk 0:03:01.1]} 3... Nxe4 {[%clk
0:02:57.8]} 4. Qh5 {[%clk 0:03:00.8]} 4... Nd6 {[%clk 0:02:51.4]} 5. Bb3 {[%clk
0:02:59.5]} 5... Be7 {[%clk 0:02:51.2]} 6. Qxe5 {[%clk 0:02:58.1]} 6... O-O
{[%clk 0:02:50]} 7. Nge2 {[%clk 0:02:52.4]} 7... Nc6 {[%clk 0:02:49.6]} 8. Qf4
{[%clk 0:02:52]} 8... Bf6 {[%clk 0:02:48]} 9. O-O {[%clk 0:02:49.7]} 9... Be5
{[%clk 0:02:47.9]} 10. Qg4 {[%clk 0:02:46.7]} 10... Ne8 {[%clk 0:02:40.3]} 11.
d4 {[%clk 0:02:26.8]} 11... d6 {[%clk 0:02:32.5]} 12. Qe4 {[%clk 0:02:13.3]}
12... Nf6 {[%clk 0:02:29.5]} 13. Qd3 {[%clk 0:02:05.1]} 13... Nb4 {[%clk
0:02:18]} 14. Qd2 {[%clk 0:01:32.2]} 14... Bxh2+ {[%clk 0:02:14]} 15. Kxh2
{[%clk 0:01:33.1]} 15... Ng4+ {[%clk 0:02:13.9]} 16. Kg1 {[%clk 0:01:32.5]}
16... Qh4 {[%clk 0:01:57.9]} 17. Qf4 {[%clk 0:01:32.9]} 17... a5 {[%clk
0:01:36]} 18. f3 {[%clk 0:01:25.4]} 18... a4 {[%clk 0:01:35.7]} 19. Nxa4 {[%clk
0:01:20.2]} 19... Re8 {[%clk 0:01:30.5]} 20. Qxf7+ {[%clk 0:01:17.2]} 1-0

[Event "*** SCC Grand Prix: Titled Tuesday Blitz"]
[Site "Chess.com"]
[Date "2020.07.07"]
[Round "7"]
[White "Tactictic"]
[Black "Juanovic"]
[Result "1-0"]
[WhiteElo "2299"]
[BlackElo "2077"]
[TimeControl "180+1"]
[EndTime "11:16:30 PDT"]
[Termination "Tactictic won by resignation"]

1. e4 {[%clk 0:03:00.9]} 1... c5 {[%clk 0:02:59.2]} 2. Nf3 {[%clk 0:02:59.2]}
2... d6 {[%clk 0:02:59.1]} 3. d4 {[%clk 0:02:59.2]} 3... cxd4 {[%clk 0:02:59.3]}
4. Nxd4 {[%clk 0:03:00.1]} 4... Nf6 {[%clk 0:02:58.7]} 5. Nc3 {[%clk 0:03:00.8]}
5... g6 {[%clk 0:02:58.3]} 6. Be3 {[%clk 0:03:00.6]} 6... Bg7 {[%clk 0:02:58.9]}
7. f3 {[%clk 0:02:58.2]} 7... Nc6 {[%clk 0:02:59.4]} 8. Qd2 {[%clk 0:02:58]}
8... O-O {[%clk 0:02:59.7]} 9. O-O-O {[%clk 0:02:57.8]} 9... d5 {[%clk 0:02:58]}
10. Kb1 {[%clk 0:02:56.7]} 10... e6 {[%clk 0:02:55.7]} 11. h4 {[%clk 0:02:29.9]}
11... Bd7 {[%clk 0:02:20.6]} 12. g4 {[%clk 0:02:17.7]} 12... h5 {[%clk 0:02:13]}
13. Bg5 {[%clk 0:02:12.1]} 13... e5 {[%clk 0:01:56.4]} 14. Nxc6 {[%clk
0:02:09.4]} 14... bxc6 {[%clk 0:01:56.6]} 15. exd5 {[%clk 0:02:09.5]} 15... cxd5
{[%clk 0:01:41.1]} 16. Nxd5 {[%clk 0:02:07]} 16... Be6 {[%clk 0:01:41]} 17. Bxf6
{[%clk 0:01:44.4]} 17... Bxf6 {[%clk 0:01:41.9]} 18. Nxf6+ {[%clk 0:01:44.5]}
18... Qxf6 {[%clk 0:01:40.1]} 19. gxh5 {[%clk 0:01:43.4]} 19... gxh5 {[%clk
0:01:36.1]} 20. Rg1+ {[%clk 0:01:40]} 20... Kh8 {[%clk 0:01:34.6]} 21. Rg5
{[%clk 0:01:39.8]} 21... Qh6 {[%clk 0:01:26.8]} 22. Rxe5 {[%clk 0:01:34.6]}
22... Qxd2 {[%clk 0:01:26.8]} 23. Rxh5+ {[%clk 0:01:33.1]} 23... Kg7 {[%clk
0:01:27.4]} 24. Rxd2 {[%clk 0:01:32.8]} 24... Rh8 {[%clk 0:01:27.8]} 25. Rxh8
{[%clk 0:01:29.1]} 25... Rxh8 {[%clk 0:01:28.7]} 26. Rd4 {[%clk 0:01:29.5]}
26... Kf6 {[%clk 0:01:24.9]} 27. b3 {[%clk 0:01:27.3]} 27... Ke5 {[%clk
0:01:24.9]} 28. Re4+ {[%clk 0:01:27.3]} 28... Kd5 {[%clk 0:01:24.4]} 29. Bc4+
{[%clk 0:01:27.4]} 1-0